Cogmind - Beta 11 @@@ ROGUE MODE // 2022.03.24 @ 00:32:01 Player: kicktown Result: Destroyed by G-34 Mercenary with Small Laser Performance ------------- Evolutions (1) 500 Regions Visited (3) 600 Robots Destroyed (11) 55 Value Destroyed (222) 222 Prototype IDs (1) 20 Alien Tech Used (0) 0 Bonus (0) 0 TOTAL SCORE: 1397 Bonus ------- None Cogmind --------- Core Integrity 0/400 Matter 300/300 Energy 100/100 System Corruption 0% Temperature Cool (6) Movement Rolling (100) Location -9/Materials Parts ------- > --- POWER (1) -------- (None) > --- PROPULSION (4) --- Compact Wheel > --- UTILITY (2) ------ Small Storage Unit > --- WEAPON (2) ------- (None) > --- INVENTORY (8) ---- Transport Network Coupler Peak State ------------ > --- POWER ------------ Light Ion Engine > --- PROPULSION ------- Flight Unit Flight Unit Flight Unit Flight Unit > --- UTILITY ---------- (None) > --- WEAPON ----------- Small Laser Light Assault Rifle > --- INVENTORY -------- Compact Wheel Heat Sink Small Storage Unit [Rating: 7] Favorites ----------- Power Light Ion Engine Engine Light Ion Engine Propulsion Flight Unit Wheel Compact Wheel Flight Unit Flight Unit Utility Small Storage Unit Device Heat Sink Storage Small Storage Unit Weapon Light Assault Rifle Energy Gun Small Laser Ballistic Gun Light Assault Rifle Build | -11 -10 -10 -9 ------- Run | Scr Mat Min Mat Slots Evolved 2 | . . . 2 Power . | . . . . Propulsion 2 | . . . 2 Utility . | . . . . Weapon . | . . . . Parts Attached 22 | 4 10 . 8 Power 3 | 1 2 . . Engine 3 | 1 2 . . Core . | . . . . Reactor . | . . . . Propulsion 8 | 1 4 . 3 Treads . | . . . . Leg . | . . . . Wheel 2 | 1 . . 1 Hover . | . . . . Flight 6 | . 4 . 2 Utility 3 | 1 . . 2 Device 1 | . . . 1 Storage 2 | 1 . . 1 Processor . | . . . . Hackware . | . . . . Protection . | . . . . Artifact . | . . . . Weapon 8 | 1 4 . 3 Energy Gun 3 | . 2 . 1 Energy Cannon . | . . . . Ballistic Gun 5 | 1 2 . 2 Ballistic Cannon . | . . . . Launcher . | . . . . Special Weapon . | . . . . Impact Weapon . | . . . . Slashing Weapon . | . . . . Piercing Weapon . | . . . . Special Melee Weapon . | . . . . Unidentified Prototypes 1 | . . . 1 Parts Lost 9 | . . . 9 Power 1 | . . . 1 Propulsion 4 | . . . 4 Utility 1 | . . . 1 Weapon 3 | . . . 3 Highest Loss Streak 6 | . . . 6 To Critical Strikes . | . . . . Average Slot Usage (%) 57 | . 61 71 51 Engine 11 | . 14 14 8 Wheel 6 | . 5 . 8 Flight 15 | . 17 28 12 Storage 3 | . 5 . 1 Energy Gun 6 | . 5 14 8 Ballistic Gun 11 | . 12 14 9 Naked Turns . | . . . . Heaviest Build 11 | 11 11 5 6 Greatest Support 16 | 16 16 8 16 Greatest Overweight (x) 3 | . 3 . . Average Overweight (x) . | . . . . Largest Inventory Capacity 8 | 8 8 5 8 Average Capacity 5 | 7 6 5 5 Most Carried 5 | . 5 5 4 Average Carried 2 | . 3 5 2 Final Capacity 8 | 8 5 5 8 Final Carried 5 | . 5 5 1 Class Distribution -------------------- 68% | Mutant 25% | Scavenger-Mutant 5% | Scavenger-Sprinter Dominant Class ---------------- Mutant | -10/Materials Scavenger-Mutant | -10/Mines Mutant | -9/Materials Resources | -11 -10 -10 -9 ----------- Run | Scr Mat Min Mat Matter Collected 421 | 161 201 . 59 Remotely . | . . . . Salvage Created 333 | . 126 . 207 Parts 23 | . 12 . 11 Haulers Intercepted 1 | . . . 1 Recyclers Shooed 1 | . 1 . . Parts Field Recycled . | . . . . Retrieved Matter . | . . . . Parts Self-Destructed . | . . . . Prevented . | . . . . Kills | -11 -10 -10 -9 ------- Run | Scr Mat Min Mat Combat Hostiles Destroyed 10 | . 5 . 5 Melee 1 | . . . 1 Guns 9 | . 5 . 4 Classes Destroyed 3 | . 2 . 1 Hauler 1 | . . . 1 Swarmer 5 | . 3 . 2 Grunt 5 | . 2 . 3 Best Kill Streak 4 | . 4 . 2 Combat Bots Only 4 | . 4 . 2 Max Kills in Single Turn 1 | . 1 . 1 Gunslinging . | . . . . Exploded . | . . . . Melee 1 | . . . 1 Uniques/NPCs Destroyed . | . . . . Combat | -11 -10 -10 -9 -------- Run | Scr Mat Min Mat Damage Taken 900 | . 109 . 791 Core 438 | . 34 . 404 Absorbed by Shields . | . . . . Core Remaining (%) 93 | 100 . 86 . Volleys Fired 48 | . 22 1 25 Largest 2 | . 2 2 2 Hottest 60 | . 60 60 60 Shots Fired 63 | . 26 2 35 Gun 63 | . 26 2 35 Cannon . | . . . . Launcher . | . . . . Special . | . . . . Kinetic 48 | . 22 1 25 Thermal 15 | . 4 1 10 Explosive . | . . . . Electromagnetic . | . . . . Robot Hit Streak 7 | . 5 . 7 Robot Miss Streak 2 | . 1 . 2 Penetration Max . | . . . . Secondary Targets 1 | . . . 1 Max Gunslinging Chain 1 | . . . 1 Shots Hit Robots 40 | . 15 . 25 Core Hits 23 | . 9 1 13 Critical Kills . | . . . . Critical Parts Destroyed . | . . . . Critical Strikes . | . . . . Melee Attacks . | . . . . Impact . | . . . . Slashing . | . . . . Piercing . | . . . . Sneak Attacks . | . . . . Combat Hostiles . | . . . . Follow-up Attacks . | . . . . Damage Inflicted 415 | . 139 17 259 Guns 384 | . 139 17 228 Cannons . | . . . . Explosions . | . . . . Melee . | . . . . Ramming 31 | . . . 31 Kinetic 266 | . 129 6 131 Thermal 118 | . 10 11 97 Explosive . | . . . . Electromagnetic . | . . . . Impact . | . . . . Slashing . | . . . . Piercing . | . . . . Highest Corruption . | . . . . Average Corruption . | . . . . Corruption Purged . | . . . . Corruption Blocked . | . . . . Overload Shots . | . . . . Overflow Damage . | . . . . Projectiles . | . . . . Explosions . | . . . . Melee . | . . . . Knockbacks . | . . . . Impact . | . . . . Kinetic . | . . . . Secondary . | . . . . Self-Inflicted Damage 14 | . . . 14 Shots . | . . . . Rammed 16 | . . . 16 Targets Rammed 16 | . . . 16 Kicked . | . . . . Crushed . | . . . . Highest Temperature 98 | . 66 24 98 Average Temperature 33 | . 19 14 51 Received Heat Transfer 321 | . 12 . 309 Siege Activations . | . . . . Robots Corrupted . | . . . . Combat Hostiles . | . . . . Parts Fried . | . . . . Impact Corruptions . | . . . . Robots Melted . | . . . . Combat Hostiles . | . . . . Parts Melted 1 | . . . 1 Heat Transferred 275 | . 25 25 225 Parts Sabotaged . | . . . . Parts Stolen . | . . . . Parts Stripped . | . . . . Power Chain Reactions . | . . . . Missiles Intercepted . | . . . . Alert | -11 -10 -10 -9 ------- Run | Scr Mat Min Mat Peak Influence 185 | . 185 13 107 Initial 13 | . . 13 4 Average 52 | . 61 13 51 Maximum Alert Level . | . . . . Low Security (%) 100 | 100 100 100 100 Level 1 . | . . . . Level 2 . | . . . . Level 3 . | . . . . Level 4 . | . . . . Level 5 . | . . . . High Security . | . . . . Max Security . | . . . . Squads Dispatched 2 | . . . 2 Investigation . | . . . . Extermination . | . . . . Reinforcement 2 | . . . 2 Assault . | . . . . Garrison . | . . . . Intercept . | . . . . Searches Triggered . | . . . . Construction Impeded . | . . . . Haulers Reinforced . | . . . . Active Scanning Responses . | . . . . Cargo Convoy Interrupts . | . . . . Stealth | -11 -10 -10 -9 --------- Run | Scr Mat Min Mat Distress Signals . | . . . . Communications Jammed . | . . . . Distress Signals . | . . . . Times Spotted 25 | . 10 . 15 Peak Tracking Total 12 | . 5 . 12 Tactical Retreats 1 | . 1 . . Traps | -11 -10 -10 -9 ------- Run | Scr Mat Min Mat Traps Triggered 1 | . 1 . . Indirectly . | . . . . Trap Hack Attempts . | . . . . Triggered . | . . . . Disarmed . | . . . . Reprogrammed . | . . . . Reused . | . . . . Traps Extracted . | . . . . Installed . | . . . . Triggered . | . . . . Machines | -11 -10 -10 -9 ---------- Run | Scr Mat Min Mat Machines Disabled . | . . . . Max in Single Turn . | . . . . Machines Sabotaged . | . . . . Garrisons Compromised . | . . . . Overloaded Fab Kills . | . . . . Hacking | -11 -10 -10 -9 --------- Run | Scr Mat Min Mat Machines Accessed 4 | . 1 . 3 Terminals 4 | . 1 . 3 Fabricators . | . . . . Repair Stations . | . . . . Recycling Units . | . . . . Scanalyzers . | . . . . Garrison Access . | . . . . Total Hacks 4 | . 1 . 3 Successful 1 | . 1 . . Failed 3 | . . . 3 Catastrophic 1 | . . . 1 Database Lockouts . | . . . . Manual 4 | . 1 . 3 Terminals 4 | . 1 . 3 Fabricators . | . . . . Repair Stations . | . . . . Recycling Units . | . . . . Scanalyzers . | . . . . Garrison Access . | . . . . Terminal Hacks 1 | . 1 . . Unreport Threat 1 | . 1 . . Fabricator Hacks . | . . . . Repair Station Hacks . | . . . . Recycling Unit Hacks . | . . . . Scanalyzer . | . . . . Garrison Access Hacks . | . . . . Unauthorized Hacks . | . . . . Terminals . | . . . . Fabricators . | . . . . Repair Stations . | . . . . Recycling Units . | . . . . Scanalyzers . | . . . . Garrison Access . | . . . . Data Cores Recovered . | . . . . Used . | . . . . Hacking Detections . | . . . . Full Trace Events . | . . . . Feedback Events . | . . . . Feedback Blocked . | . . . . Robot Schematics Acquired . | . . . . Robots Built . | . . . . Authchips . | . . . . Time . | . . . . Total Robot Build Rating . | . . . . Part Schematics Acquired . | . . . . Parts Built . | . . . . Authchips . | . . . . Time . | . . . . Total Part Build Rating . | . . . . Parts Repaired . | . . . . Time . | . . . . Parts Recycled . | . . . . Recycled Matter . | . . . . Retrieved Matter . | . . . . Retrieved Components . | . . . . Parts Scanalyzed . | . . . . Part Schematics Acquired . | . . . . Parts Damaged . | . . . . Bothacking | -11 -10 -10 -9 ------------ Run | Scr Mat Min Mat Used RIF Installer . | . . . . Robots Hacked . | . . . . Non-combat . | . . . . Combat . | . . . . Robot Hacks Applied . | . . . . Relay Couplers Released . | . . . . Fabnet Peak Effective % . | . . . . Robots Rewired . | . . . . Allies Hacked . | . . . . Hacks Repelled . | . . . . Allies | -11 -10 -10 -9 -------- Run | Scr Mat Min Mat Total Allies 2 | . . 2 . Largest Group 2 | . . 2 . Highest-Rated Group 39 | . . 39 . Highest-Rated Ally 31 | . . 31 . Total Orders . | . . . . Ally Attacks . | . . . . Total Damage . | . . . . Kills . | . . . . Allies Corrupted . | . . . . Allies Melted . | . . . . Intel | -11 -10 -10 -9 ------- Run | Scr Mat Min Mat Robot Analysis Total . | . . . . Derelict Logs Recovered . | . . . . Drone Launches . | . . . . Drone Recoveries . | . . . . Exploration | -11 -10 -10 -9 ------------- Run | Scr Mat Min Mat Turns Passed 494 | 35 245 11 203 Spaces Moved 489 | 32 300 21 136 Core 43 | 6 37 . . Treads . | . . . . Legs . | . . . . Wheels 136 | 26 11 . 99 Hover . | . . . . Flight 310 | . 252 21 37 Fastest Speed 31 | 50 37 37 31 Average Speed 66 | 90 59 37 81 Slowest Speed 200 | 100 200 37 100 Overloaded Moves . | . . . . Propulsion Burnouts . | . . . . Robots Hopped 4 | . 4 . . Cave-ins Triggered . | . . . . Exploration Rate (%) 24 | 3 59 10 26 Regions Visited 3 Branch Regions 1 Pre-discovered Areas . | . . . . Known Exits Taken . | . . . . Unknown Exits Taken 3 | 1 1 1 . Scrap Searched 1 | . . 1 . Spaces Dug . | . . . . Terrain Destroyed . | . . . . Melee . | . . . . Projectile . | . . . . AOE . | . . . . Terrain Rammed . | . . . . Walls Destroyed . | . . . . Machines Disabled . | . . . . Actions | -11 -10 -10 -9 --------- Run | Scr Mat Min Mat Total 595 | 35 341 21 198 Wait 14 | . 4 . 10 Move 478 | 31 291 20 136 Hop 4 | . 4 . . Pick Up 4 | . 3 . 1 Fast Attach 9 | 4 3 . 2 Attach 8 | . 2 . 6 Detach 4 | . 3 . 1 Swap 5 | . 5 . . Drop 5 | . 4 . 1 Fire 48 | . 22 1 25 Melee . | . . . . Ram 16 | . . . 16 Kick . | . . . . Crush . | . . . . Escape Stasis . | . . . . Rewire . | . . . . Trap . | . . . . Miscellaneous . | . . . . Route ------- -11/Scrapyard -10/Materials -10/Mines -9/Materials History --------- Turn | Location | Event 21 | -11/Scrapyard | Discovered new exit (range 14) 36 | -11/Scrapyard | Entered Materials 276 | -10/Materials | Discovered new exit (range 14) 281 | -10/Materials | Entered Mines 287 | -10/Mines | Discovered new exit (range 5) 292 | -10/Mines | Entered Materials 292 | -9/Materials | Evolved 2 slots: Propulsion x2 352 | -9/Materials | Lost 3 parts (3n) 477 | -9/Materials | Core integrity fell below 50% 490 | -9/Materials | Core integrity fell below 20% 495 | -9/Materials | Destroyed by G-34 Mercenary with Small Laser Last Messages --------------- 00481_ Slammed into Y-45 Defender. 00482_ K-01 Serf collects debris. 00482_ Slammed into G-34 Mercenary. 00483_ K-01 Serf collects debris. 00483_ Acquired Lgt. Assault Rifle. 00485_ Slammed into Y-45 Defender. 00486_ K-01 Serf collects debris. 00486_ Slammed into G-34 Mercenary. 00487_ Acquired 1 matter. 00487_ Slammed into G-34 Mercenary. 00489_ K-01 Serf collects debris. 00489_ Slammed into G-34 Mercenary. 00490_ Heat Sink broken. 00490_ Destabilizing: Short circuit. 00491_ Lgt. Assault Rifle destroyed. 00491_ Slammed into Y-45 Defender. 00492_ K-01 Serf collects debris. 00492_ Slammed into G-34 Mercenary. 00492_ Broken Heat Sink destroyed. 00493_ Slammed into G-34 Mercenary. Map ----- +----------------------------------------------------+ | | | ?????????????????????????????????????????????????? | | ?????????????????????????????????????????????????? | | ?????????????????????????????????????????????????? | | ?????????????????????????????????????????????????? | | ?????????????????????????????????????????????????? | | ?????????????????????????????????????????????????? | | ?????????????????????????????????????????????????? | | ?????????????????????????????????????????????????? | | ?????????????????????????????????????????????????? | | ?????????????????????????????????????????????????? | | ?????????????????????????????????????????????????? | | ?????????????????????????????????????????????????? | | ?????????????????????????????????????????????????? | | ??????????? ????????????????????????????????????? | | ??????????# #############?????????????????????? | | ??????????? #?????????????????????? | | ???????????? #?????????????????????? | | ????????????""" """ #?????????????????????? | | ???????? ???""" """ #?????????????????????? | | ??????! """ """ #?????????????????????? | | ?????? ###########????????????? | | ?????? #%%% #????????????? | | ?????????? """ """ %g#g%g! #????????????? | | ????????????""" """ %%Y%% #????????????? | | ????????"" """ """ @# #????########? | | ?????? au# #????# #? | | ?????? w u k# #????# """ /#? | | ?????????##### ###% # #????# """ #? | | ?????????????#! !??# # #????# """ #? | | ?????????????#! !??#% ###########????# #? | | ?????????????##!!!!#??#!* #???????????????? ?? | | ??????????????#####???# ###################+#### | | ??????????????????????# | | ??????????????????????# #######+########### #### | | ??????????????????????# k #?????# #?????# #??? | | ??????????????????????# #?????# ! #?????# #??? | | ??????????????????????# #?????# #?????# #??? | | ??????????????????????# #?????# #?????# #??? | | ??????????????????????# #?????# "T" #?????# #??? | | ??????????????????????# #?????# """ #?????# #??? | | ??????????????????????# #?????# #######+###? | | ?????????????????????? ?????######## #? | | ?????????????????????? ?????????????# #? | | ?????????????????????? ?????????????# #? | | ?????????????????????# ?????????????# #? | | ?????????????????????# ?????????????# [ """#? | | ?????????????????????### #?????????????# """#? | | ???????????????????????? ???????######## """#? | | ??????????????????????????????# + """#? | +----------------------------------------------------+ Best States ------------- Heat Dissipation 28 Energy Generation 10 Energy Capacity 250 Matter Stores 300 Matter Capacity 300 Sight Range 16 Terrain Scan Density 10 Evasion (%) 63 Item Schematics ----------------- None Robot Schematics ------------------ None Fabricated ------------ Nothing Alien Tech Used ----------------- None Achievements -------------- None Challenges ------------ None Game ------ Seed CoolantSpreadCycler Manual? 0 Play Time 00:09:05 Cumulative 43.9 hours Start 2022.03.24 @ 00:23:19 End 2022.03.24 @ 00:32:01 Sessions 1 Manual Loads 0 Difficulty Rogue Special Mode None Game No. 28 Rogue 28 Adventurer 0 Explorer 0 Win Type - Total 0 Types 0/0/0/0/0/0/0/0/0 Lore% 23 Gallery% 39 Achievement% 30 Wizard Run 0 Options --------- ASCII 0 Keyboard 0 Movement Mouse Keybinds 0 Fullscreen 2 Font 18/TerminusBold Map View 76x50 Tactical HUD 1 Map Filters NONE Filters NONE Steam 1 RUN: 329b7443-7192-4e47-b2fc-972ccca9affe